[Event "Live Chess"]
[Site "Chess.com"]
[Date "2023.05.20"]
[Round "-"]
[White "LiamBellwood"]
[Black "PiotrD11"]
[Result "1-0"]
[WhiteElo "2060"]
[BlackElo "1342"]
[TimeControl "300"]
[EndTime "12:44:50 PDT"]
[Termination "LiamBellwood won by checkmate"]

1. d4 {[%clk 0:04:59.6]} 1... d5 {[%clk 0:04:59.1]} 2. Nc3 {[%clk 0:04:59]} 2...
Nf6 {[%clk 0:04:57.4]} 3. Bf4 {[%clk 0:04:58.3]} 3... Bf5 {[%clk 0:04:55.7]} 4.
e3 {[%clk 0:04:57.4]} 4... e6 {[%clk 0:04:54.9]} 5. f3 {[%clk 0:04:56.9]} 5...
Bb4 {[%clk 0:04:52]} 6. g4 {[%clk 0:04:55]} 6... Bxc3+ {[%clk 0:04:44.7]} 7.
bxc3 {[%clk 0:04:54.9]} 7... Bg6 {[%clk 0:04:43.4]} 8. h4 {[%clk 0:04:54]} 8...
h6 {[%clk 0:04:42.1]} 9. Bd3 {[%clk 0:04:53.3]} 9... Bxd3 {[%clk 0:04:40.8]} 10.
cxd3 {[%clk 0:04:53.2]} 10... O-O {[%clk 0:04:38.8]} 11. Ne2 {[%clk 0:04:48]}
11... Nbd7 {[%clk 0:04:32.2]} 12. Ng3 {[%clk 0:04:44.3]} 12... Re8 {[%clk
0:04:31.2]} 13. g5 {[%clk 0:04:42.6]} 13... e5 {[%clk 0:04:28]} 14. dxe5 {[%clk
0:04:35.3]} 14... Nh7 {[%clk 0:04:18.7]} 15. gxh6 {[%clk 0:04:31.8]} 15... g6
{[%clk 0:04:15.9]} 16. e4 {[%clk 0:03:44.2]} 16... Nxe5 {[%clk 0:04:12.9]} 17.
d4 {[%clk 0:03:37.8]} 17... Nc4 {[%clk 0:03:53.3]} 18. Kf2 {[%clk 0:03:34.3]}
18... dxe4 {[%clk 0:03:47.9]} 19. Nxe4 {[%clk 0:03:26.2]} 19... Qe7 {[%clk
0:03:26.5]} 20. Qb3 {[%clk 0:02:57.1]} 20... Nd6 {[%clk 0:03:19.5]} 21. Bxd6
{[%clk 0:02:47.8]} 21... cxd6 {[%clk 0:03:16.7]} 22. Rag1 {[%clk 0:02:47.4]}
22... Nf6 {[%clk 0:03:01.1]} 23. Rxg6+ {[%clk 0:02:44.4]} 23... Kh8 {[%clk
0:02:51.4]} 24. Rxf6 {[%clk 0:02:40.7]} 24... Rad8 {[%clk 0:02:34.7]} 25. Qxf7
{[%clk 0:02:34.5]} 25... Qxf7 {[%clk 0:02:19.8]} 26. Rxf7 {[%clk 0:02:34.4]}
26... d5 {[%clk 0:02:17.5]} 27. Nf6 {[%clk 0:02:33.8]} 27... Re6 {[%clk
0:02:11.5]} 28. Rh7# {[%clk 0:02:32.8]} 1-0

[Event "Live Chess"]
[Site "Chess.com"]
[Date "2023.05.20"]
[Round "-"]
[White "zdanevych"]
[Black "LutherSullivan"]
[Result "0-1"]
[WhiteElo "1518"]
[BlackElo "1973"]
[TimeControl "300"]
[EndTime "12:45:14 PDT"]
[Termination "LutherSullivan won by resignation"]

1. d4 {[%clk 0:04:59]} 1... Nf6 {[%clk 0:04:58.7]} 2. c4 {[%clk 0:04:58]} 2...
g6 {[%clk 0:04:57.9]} 3. Nc3 {[%clk 0:04:57.2]} 3... d5 {[%clk 0:04:57]} 4. cxd5
{[%clk 0:04:56.1]} 4... Nxd5 {[%clk 0:04:55.8]} 5. e4 {[%clk 0:04:55.7]} 5...
Nxc3 {[%clk 0:04:54.9]} 6. bxc3 {[%clk 0:04:55.6]} 6... Bg7 {[%clk 0:04:53.3]}
7. Nf3 {[%clk 0:04:55.2]} 7... c5 {[%clk 0:04:52.3]} 8. Be2 {[%clk 0:04:48.5]}
8... O-O {[%clk 0:04:49.6]} 9. O-O {[%clk 0:04:46.9]} 9... Bg4 {[%clk
0:04:39.4]} 10. h3 {[%clk 0:04:43.4]} 10... Bxf3 {[%clk 0:04:37.4]} 11. Bxf3
{[%clk 0:04:43.3]} 11... cxd4 {[%clk 0:04:36.5]} 12. cxd4 {[%clk 0:04:43.2]}
12... Qxd4 {[%clk 0:04:34.9]} 13. Rb1 {[%clk 0:04:34]} 13... Nc6 {[%clk
0:04:28.2]} 14. Bb2 {[%clk 0:04:32.4]} 14... Qxd1 {[%clk 0:04:26.3]} 15. Rfxd1
{[%clk 0:04:30.1]} 15... Rfd8 {[%clk 0:02:57.3]} 16. Rxd8+ {[%clk 0:04:22.7]}
16... Nxd8 {[%clk 0:02:47.1]} 17. Ba3 {[%clk 0:04:14]} 17... Kf8 {[%clk
0:02:42.8]} 18. e5 {[%clk 0:04:11.3]} 18... Bxe5 {[%clk 0:02:39.7]} 19. Bxb7
{[%clk 0:04:08.3]} 19... Rb8 {[%clk 0:02:29.9]} 20. Be4 {[%clk 0:03:45.3]} 20...
Rxb1+ {[%clk 0:02:28.9]} 21. Bxb1 {[%clk 0:03:45.2]} 21... Bd6 {[%clk
0:02:25.1]} 22. Bb2 {[%clk 0:03:39.7]} 22... e5 {[%clk 0:02:15.3]} 23. Bd3
{[%clk 0:03:32.2]} 23... Ke7 {[%clk 0:02:13.5]} 24. Bc4 {[%clk 0:03:30.6]} 24...
Ne6 {[%clk 0:02:09.2]} 25. f3 {[%clk 0:03:25.1]} 25... f6 {[%clk 0:02:06.1]} 26.
Kf2 {[%clk 0:03:22.3]} 26... Bc5+ {[%clk 0:02:03.3]} 27. Kf1 {[%clk 0:03:17.3]}
27... h5 {[%clk 0:01:54.6]} 28. a4 {[%clk 0:03:11.5]} 28... h4 {[%clk
0:01:46.1]} 29. Bc1 {[%clk 0:03:04.2]} 29... Ng7 {[%clk 0:01:40.1]} 30. a5
{[%clk 0:02:58.3]} 30... Nh5 {[%clk 0:01:36.7]} 31. a6 {[%clk 0:02:51.9]} 31...
Ng3+ {[%clk 0:01:34.2]} 32. Ke1 {[%clk 0:02:47.6]} 32... Kd6 {[%clk 0:01:23.5]}
33. Bf7 {[%clk 0:02:41.1]} 33... g5 {[%clk 0:01:22.3]} 34. Bb2 {[%clk
0:02:30.7]} 34... Kc6 {[%clk 0:01:17.1]} 35. Bc4 {[%clk 0:02:27.9]} 35... Nf5
{[%clk 0:01:09.9]} 36. Be6 {[%clk 0:02:22.2]} 36... Ne3 {[%clk 0:01:07]} 37. Bc8
{[%clk 0:02:09.1]} 37... Nxg2+ {[%clk 0:01:05.2]} 38. Kf1 {[%clk 0:02:05.4]}
38... Ne3+ {[%clk 0:01:03.1]} 39. Ke2 {[%clk 0:02:03.9]} 39... Kb6 {[%clk
0:00:55.8]} 40. Bb7 {[%clk 0:02:00.4]} 40... Ng2 {[%clk 0:00:53.3]} 41. Bc3
{[%clk 0:01:51.6]} 41... Nf4+ {[%clk 0:00:51.2]} 42. Kf1 {[%clk 0:01:46.2]}
42... Nxh3 {[%clk 0:00:50.6]} 43. Kg2 {[%clk 0:01:45.4]} 43... Nf4+ {[%clk
0:00:50.1]} 44. Kf1 {[%clk 0:01:43.4]} 44... Ne6 {[%clk 0:00:47]} 45. Bd2 {[%clk
0:01:39.7]} 45... Nd4 {[%clk 0:00:45.4]} 46. Be3 {[%clk 0:01:34.4]} 46... Nxf3
{[%clk 0:00:42.4]} 47. Ke2 {[%clk 0:01:32.8]} 47... Nd4+ {[%clk 0:00:39.8]} 48.
Kd3 {[%clk 0:01:30.3]} 48... Nb3 {[%clk 0:00:38.3]} 49. Bd2 {[%clk 0:01:24.7]}
49... Nxd2 {[%clk 0:00:37.2]} 50. Kxd2 {[%clk 0:01:24.6]} 50... Kb5 {[%clk
0:00:34.1]} 51. Ke2 {[%clk 0:01:22.8]} 51... Kc4 {[%clk 0:00:33.6]} 52. Kf3
{[%clk 0:01:22.2]} 52... Kd4 {[%clk 0:00:33.2]} 53. Kg4 {[%clk 0:01:21.4]} 53...
e4 {[%clk 0:00:32.5]} 0-1

[Event "Live Chess"]
[Site "Chess.com"]
[Date "2023.05.20"]
[Round "-"]
[White "OSmith06"]
[Black "rmethornhill"]
[Result "1/2-1/2"]
[WhiteElo "1659"]
[BlackElo "1181"]
[TimeControl "300"]
[EndTime "12:45:17 PDT"]
[Termination "Game drawn by stalemate"]

1. e4 {[%clk 0:04:59]} 1... c5 {[%clk 0:04:56.1]} 2. Nf3 {[%clk 0:04:57.6]} 2...
d6 {[%clk 0:04:54.8]} 3. d4 {[%clk 0:04:56.6]} 3... cxd4 {[%clk 0:04:54.2]} 4.
Nxd4 {[%clk 0:04:56.5]} 4... Nf6 {[%clk 0:04:53.4]} 5. Nc3 {[%clk 0:04:53.3]}
5... g6 {[%clk 0:04:52.6]} 6. Be3 {[%clk 0:04:50]} 6... Bg7 {[%clk 0:04:50.6]}
7. f3 {[%clk 0:04:48.4]} 7... a6 {[%clk 0:04:49.5]} 8. Qd2 {[%clk 0:04:46.6]}
8... b5 {[%clk 0:04:48.6]} 9. Be2 {[%clk 0:04:44.2]} 9... Bb7 {[%clk 0:04:45.5]}
10. O-O {[%clk 0:04:40.9]} 10... Nc6 {[%clk 0:04:44.6]} 11. Nxc6 {[%clk
0:04:30.7]} 11... Bxc6 {[%clk 0:04:43.5]} 12. Nd5 {[%clk 0:04:28.4]} 12... O-O
{[%clk 0:04:38.3]} 13. c3 {[%clk 0:04:20.8]} 13... Rc8 {[%clk 0:04:36.8]} 14. a4
{[%clk 0:04:16.2]} 14... bxa4 {[%clk 0:04:28.7]} 15. Bxa6 {[%clk 0:04:14.5]}
15... Ra8 {[%clk 0:04:20.6]} 16. Be2 {[%clk 0:04:01.9]} 16... Re8 {[%clk
0:04:09.7]} 17. Bb6 {[%clk 0:03:56.6]} 17... Qb8 {[%clk 0:03:49.9]} 18. Nxf6+
{[%clk 0:03:48.6]} 18... Bxf6 {[%clk 0:03:48.2]} 19. Bd4 {[%clk 0:03:48.1]}
19... Bxd4+ {[%clk 0:03:40.9]} 20. cxd4 {[%clk 0:03:48]} 20... Bb5 {[%clk
0:03:32.6]} 21. Rfc1 {[%clk 0:03:37.9]} 21... Qb6 {[%clk 0:03:15.3]} 22. Qb4
{[%clk 0:03:26.7]} 22... Reb8 {[%clk 0:03:13.7]} 23. Bxb5 {[%clk 0:03:19.8]}
23... Qxb5 {[%clk 0:03:12.8]} 24. Qxb5 {[%clk 0:03:10.9]} 24... Rxb5 {[%clk
0:03:11.5]} 25. Rc7 {[%clk 0:03:05.7]} 25... Kf8 {[%clk 0:03:05.3]} 26. Rc4
{[%clk 0:02:58.8]} 26... Rxb2 {[%clk 0:02:34.9]} 27. Rcxa4 {[%clk 0:02:56.7]}
27... Rxa4 {[%clk 0:02:29.1]} 28. Rxa4 {[%clk 0:02:56.6]} 28... Rd2 {[%clk
0:02:26.2]} 29. d5 {[%clk 0:02:53]} 29... Kg7 {[%clk 0:02:24.9]} 30. Ra7 {[%clk
0:02:50.5]} 30... Kf6 {[%clk 0:02:20.3]} 31. h4 {[%clk 0:02:48.4]} 31... h5
{[%clk 0:02:18]} 32. Kh2 {[%clk 0:02:47.4]} 32... e6 {[%clk 0:02:05.8]} 33. Rd7
{[%clk 0:02:36.5]} 33... exd5 {[%clk 0:02:03.8]} 34. Rxd6+ {[%clk 0:02:35.2]}
34... Ke7 {[%clk 0:01:59.3]} 35. Rxd5 {[%clk 0:02:08.6]} 35... Rxd5 {[%clk
0:01:56.9]} 36. exd5 {[%clk 0:02:08.5]} 36... Kd6 {[%clk 0:01:56.2]} 37. Kg3
{[%clk 0:02:07.1]} 37... Kxd5 {[%clk 0:01:52.5]} 38. Kf4 {[%clk 0:02:06.5]}
38... f6 {[%clk 0:01:47.6]} 39. g4 {[%clk 0:02:04]} 39... hxg4 {[%clk
0:01:44.9]} 40. fxg4 {[%clk 0:02:03.9]} 40... Ke6 {[%clk 0:01:43]} 41. Ke4
{[%clk 0:02:00.2]} 41... Kd6 {[%clk 0:01:36.9]} 42. h5 {[%clk 0:01:59.3]} 42...
gxh5 {[%clk 0:01:31.4]} 43. gxh5 {[%clk 0:01:58.6]} 43... Ke7 {[%clk 0:01:31]}
44. Kf5 {[%clk 0:01:57.7]} 44... Kf7 {[%clk 0:01:30.4]} 45. h6 {[%clk
0:01:54.1]} 45... Kg8 {[%clk 0:01:28.6]} 46. Kxf6 {[%clk 0:01:51.3]} 46... Kh7
{[%clk 0:01:23.4]} 47. Kg5 {[%clk 0:01:50]} 47... Kg8 {[%clk 0:01:20.9]} 48. Kg6
{[%clk 0:01:49.1]} 48... Kh8 {[%clk 0:01:18.7]} 49. Kh5 {[%clk 0:01:46]} 49...
Kh7 {[%clk 0:01:17]} 50. Kg5 {[%clk 0:01:45.4]} 50... Kh8 {[%clk 0:01:13.2]} 51.
Kg6 {[%clk 0:01:45.3]} 51... Kg8 {[%clk 0:01:12]} 52. h7+ {[%clk 0:01:45.2]}
52... Kh8 {[%clk 0:01:11.4]} 53. Kh6 {[%clk 0:01:43.6]} 1/2-1/2

[Event "Live Chess"]
[Site "Chess.com"]
[Date "2023.05.20"]
[Round "-"]
[White "Ian-Morley"]
[Black "LodeshChess"]
[Result "0-1"]
[WhiteElo "982"]
[BlackElo "1017"]
[TimeControl "300"]
[EndTime "12:45:29 PDT"]
[Termination "LodeshChess won on time"]

1. e4 {[%clk 0:04:57.9]} 1... c6 {[%clk 0:04:56.6]} 2. d4 {[%clk 0:04:53.8]}
2... d5 {[%clk 0:04:52.1]} 3. f3 {[%clk 0:04:51.3]} 3... Qb6 {[%clk 0:04:49.9]}
4. c3 {[%clk 0:04:47.1]} 4... Nd7 {[%clk 0:04:43.8]} 5. Ne2 {[%clk 0:04:21.1]}
5... e5 {[%clk 0:04:41.4]} 6. Bg5 {[%clk 0:04:10.6]} 6... Be7 {[%clk 0:04:37.5]}
7. Bxe7 {[%clk 0:04:06.2]} 7... Nxe7 {[%clk 0:04:36.5]} 8. Qb3 {[%clk
0:04:02.8]} 8... Qxb3 {[%clk 0:04:26.5]} 9. axb3 {[%clk 0:04:00.7]} 9... exd4
{[%clk 0:04:26]} 10. Nxd4 {[%clk 0:03:57.8]} 10... O-O {[%clk 0:04:23.8]} 11.
exd5 {[%clk 0:03:51.9]} 11... Nxd5 {[%clk 0:04:21.6]} 12. c4 {[%clk 0:03:50.3]}
12... Ne3 {[%clk 0:04:16.4]} 13. Na3 {[%clk 0:03:46.9]} 13... Nf6 {[%clk
0:04:05]} 14. Nac2 {[%clk 0:03:43.7]} 14... Nxc2+ {[%clk 0:03:58.7]} 15. Nxc2
{[%clk 0:03:31.5]} 15... Re8+ {[%clk 0:03:58.2]} 16. Kf2 {[%clk 0:03:29]} 16...
Bf5 {[%clk 0:03:56.8]} 17. Ne3 {[%clk 0:03:24.6]} 17... Re7 {[%clk 0:03:49.5]}
18. Nxf5 {[%clk 0:03:22.2]} 18... Re5 {[%clk 0:03:45.9]} 19. Nd6 {[%clk
0:03:18.5]} 19... Rb8 {[%clk 0:03:38.1]} 20. Re1 {[%clk 0:03:16]} 20... Rxe1
{[%clk 0:03:36.2]} 21. Kxe1 {[%clk 0:03:13.8]} 21... Rd8 {[%clk 0:03:35.9]} 22.
Nxb7 {[%clk 0:02:56.6]} 22... Rb8 {[%clk 0:03:32]} 23. Nd6 {[%clk 0:02:53.4]}
23... Rxb3 {[%clk 0:03:31]} 24. Ne4 {[%clk 0:02:51.6]} 24... Nd7 {[%clk
0:03:24.5]} 25. Be2 {[%clk 0:02:47.7]} 25... Rxb2 {[%clk 0:03:22.3]} 26. Kf2
{[%clk 0:02:45]} 26... Ne5 {[%clk 0:02:59.4]} 27. Rd1 {[%clk 0:02:40.8]} 27...
g6 {[%clk 0:02:53.7]} 28. Nf6+ {[%clk 0:02:34]} 28... Kg7 {[%clk 0:02:51.2]} 29.
Ng4 {[%clk 0:02:31.9]} 29... Nxc4 {[%clk 0:02:47.3]} 30. Rc1 {[%clk 0:02:27.8]}
30... Na5 {[%clk 0:02:38.7]} 31. Ne5 {[%clk 0:02:21.3]} 31... c5 {[%clk
0:02:28.5]} 32. Nd7 {[%clk 0:02:18.8]} 32... c4 {[%clk 0:02:25.4]} 33. Nc5
{[%clk 0:02:16.6]} 33... Nb3 {[%clk 0:01:56.3]} 34. Rxc4 {[%clk 0:02:12.5]}
34... Nxc5 {[%clk 0:01:42.6]} 35. Rxc5 {[%clk 0:02:10.3]} 35... Ra2 {[%clk
0:01:42]} 36. Ke3 {[%clk 0:02:06.6]} 36... Ra3+ {[%clk 0:01:40]} 37. Kd4 {[%clk
0:02:03]} 37... Ra4+ {[%clk 0:01:34.2]} 38. Bc4 {[%clk 0:02:00.1]} 38... a5
{[%clk 0:01:28.2]} 39. Rc7 {[%clk 0:01:58.2]} 39... Ra1 {[%clk 0:01:18.1]} 40.
Rxf7+ {[%clk 0:01:54.6]} 40... Kh6 {[%clk 0:01:17.4]} 41. Ra7 {[%clk 0:01:52.6]}
41... a4 {[%clk 0:01:13.4]} 42. g4 {[%clk 0:01:49]} 42... a3 {[%clk 0:01:09]}
43. h4 {[%clk 0:01:10.6]} 43... Rd1+ {[%clk 0:01:02.3]} 44. Kc3 {[%clk
0:00:59.5]} 44... Rh1 {[%clk 0:00:58.4]} 45. g5+ {[%clk 0:00:55.5]} 45... Kh5
{[%clk 0:00:53.7]} 46. Be2 {[%clk 0:00:53.8]} 46... Kxh4 {[%clk 0:00:47.2]} 47.
Ra4+ {[%clk 0:00:17.7]} 47... Kxg5 {[%clk 0:00:44.5]} 48. Ra5+ {[%clk
0:00:15.9]} 48... Kh6 {[%clk 0:00:43.8]} 49. Rxa3 {[%clk 0:00:13]} 49... Rc1+
{[%clk 0:00:39.8]} 50. Kd2 {[%clk 0:00:10.9]} 50... Rh1 {[%clk 0:00:35]} 51. f4
{[%clk 0:00:10.2]} 51... Rh4 {[%clk 0:00:32.7]} 52. f5 {[%clk 0:00:09.8]} 52...
gxf5 {[%clk 0:00:29.5]} 53. Rf3 {[%clk 0:00:09.2]} 53... Kg5 {[%clk 0:00:28]}
54. Bd3 {[%clk 0:00:07.4]} 54... Rf4 {[%clk 0:00:25.3]} 55. Ke3 {[%clk
0:00:05.5]} 55... Rxf3+ {[%clk 0:00:22.9]} 56. Kxf3 {[%clk 0:00:05]} 56... h5
{[%clk 0:00:21.6]} 57. Kg3 {[%clk 0:00:04.1]} 57... h4+ {[%clk 0:00:20.6]} 58.
Kh3 {[%clk 0:00:02.4]} 58... f4 {[%clk 0:00:19.3]} 59. Be2 {[%clk 0:00:01.4]}
59... Kf5 {[%clk 0:00:15.5]} 60. Bf3 {[%clk 0:00:00.8]} 60... Ke5 {[%clk
0:00:14.2]} 61. Kxh4 {[%clk 0:00:00.1]} 61... Kd4 {[%clk 0:00:11.9]} 0-1

[Event "Live Chess"]
[Site "Chess.com"]
[Date "2023.05.20"]
[Round "-"]
[White "booktrunk"]
[Black "seabuck"]
[Result "0-1"]
[WhiteElo "1300"]
[BlackElo "1858"]
[TimeControl "300"]
[EndTime "12:45:31 PDT"]
[Termination "seabuck won by resignation"]

1. d4 {[%clk 0:04:57.6]} 1... e6 {[%clk 0:04:57.4]} 2. Nf3 {[%clk 0:04:56.7]}
2... Nf6 {[%clk 0:04:54.6]} 3. Bf4 {[%clk 0:04:55.8]} 3... c5 {[%clk 0:04:53.2]}
4. dxc5 {[%clk 0:04:54.8]} 4... Bxc5 {[%clk 0:04:49.2]} 5. e3 {[%clk 0:04:54.2]}
5... Qb6 {[%clk 0:04:42.3]} 6. b3 {[%clk 0:04:45.3]} 6... Nc6 {[%clk 0:04:30.6]}
7. Be2 {[%clk 0:04:43.6]} 7... Nd5 {[%clk 0:04:27.6]} 8. Bg3 {[%clk 0:04:41.2]}
8... Bb4+ {[%clk 0:04:21]} 9. Nfd2 {[%clk 0:04:38.6]} 9... Nc3 {[%clk
0:04:13.5]} 10. Nxc3 {[%clk 0:04:37.2]} 10... Bxc3 {[%clk 0:04:12.1]} 11. Rb1
{[%clk 0:04:36.2]} 11... Qa5 {[%clk 0:04:07.1]} 12. Bd3 {[%clk 0:04:23.2]} 12...
Qxa2 {[%clk 0:04:00.9]} 13. Rc1 {[%clk 0:04:17.9]} 13... Qa5 {[%clk 0:03:56.7]}
14. Ke2 {[%clk 0:04:15.2]} 14... Bxd2 {[%clk 0:03:55]} 15. Qxd2 {[%clk
0:04:14.1]} 15... Qxd2+ {[%clk 0:03:53.9]} 16. Kxd2 {[%clk 0:04:13]} 16... d5
{[%clk 0:03:53]} 17. h4 {[%clk 0:04:07.1]} 17... Bd7 {[%clk 0:03:51.6]} 18. Bd6
{[%clk 0:04:05]} 18... O-O-O {[%clk 0:03:40.7]} 19. Ra1 {[%clk 0:04:01]} 19...
a6 {[%clk 0:03:38.2]} 20. b4 {[%clk 0:03:58.3]} 20... Na7 {[%clk 0:03:27.9]} 21.
Ra3 {[%clk 0:03:54.5]} 21... Bb5 {[%clk 0:03:23.5]} 22. Bxb5 {[%clk 0:03:49.5]}
22... Nxb5 {[%clk 0:03:22.2]} 23. Be7 {[%clk 0:03:40.2]} 23... Nxa3 {[%clk
0:03:20.6]} 24. Bxd8 {[%clk 0:03:39.4]} 24... Rxd8 {[%clk 0:03:19.3]} 0-1

[Event "Live Chess"]
[Site "Chess.com"]
[Date "2023.05.20"]
[Round "-"]
[White "Richardallis"]
[Black "ViktorTheCoolBoy"]
[Result "0-1"]
[WhiteElo "1764"]
[BlackElo "2524"]
[TimeControl "300"]
[EndTime "12:45:35 PDT"]
[Termination "ViktorTheCoolBoy won by resignation"]

1. d4 {[%clk 0:04:59.4]} 1... d5 {[%clk 0:04:58.7]} 2. Nf3 {[%clk 0:04:58.1]}
2... Bf5 {[%clk 0:04:55.1]} 3. Bg5 {[%clk 0:04:56.7]} 3... h6 {[%clk 0:04:52]}
4. Bh4 {[%clk 0:04:55.7]} 4... Qd6 {[%clk 0:04:48.5]} 5. c3 {[%clk 0:04:51.9]}
5... e6 {[%clk 0:04:45.3]} 6. Nbd2 {[%clk 0:04:50.4]} 6... Be7 {[%clk
0:04:41.5]} 7. Bg3 {[%clk 0:04:48.3]} 7... Qb6 {[%clk 0:04:39.4]} 8. b4 {[%clk
0:04:46.4]} 8... a5 {[%clk 0:04:35]} 9. a3 {[%clk 0:04:45.2]} 9... Nf6 {[%clk
0:04:32.6]} 10. e3 {[%clk 0:04:43.6]} 10... O-O {[%clk 0:04:30.4]} 11. Be2
{[%clk 0:04:42.1]} 11... c6 {[%clk 0:04:26.8]} 12. O-O {[%clk 0:04:40.5]} 12...
Nbd7 {[%clk 0:04:24.8]} 13. Re1 {[%clk 0:04:39.5]} 13... Ne4 {[%clk 0:04:20.9]}
14. Nxe4 {[%clk 0:04:38]} 14... Bxe4 {[%clk 0:04:20.7]} 15. Ne5 {[%clk 0:04:37]}
15... Nxe5 {[%clk 0:04:19.2]} 16. Bxe5 {[%clk 0:04:35.9]} 16... Qd8 {[%clk
0:04:12]} 17. Bd3 {[%clk 0:04:34.7]} 17... Bxd3 {[%clk 0:04:10.6]} 18. Qxd3
{[%clk 0:04:33.8]} 18... Bd6 {[%clk 0:04:09.9]} 19. Bxd6 {[%clk 0:04:29.6]}
19... Qxd6 {[%clk 0:04:09.8]} 20. f4 {[%clk 0:04:27.8]} 20... Ra6 {[%clk
0:04:05.4]} 21. Qd2 {[%clk 0:04:20]} 21... Rfa8 {[%clk 0:04:03.3]} 22. Qb2
{[%clk 0:04:17.1]} 22... Qc7 {[%clk 0:03:59.4]} 23. Kf2 {[%clk 0:04:13.9]} 23...
Qb6 {[%clk 0:03:57.7]} 24. Kf3 {[%clk 0:04:10.4]} 24... Qb5 {[%clk 0:03:56.7]}
25. Qb3 {[%clk 0:04:04.1]} 25... axb4 {[%clk 0:03:54]} 26. axb4 {[%clk
0:04:02.7]} 26... Rxa1 {[%clk 0:03:52.3]} 0-1

[Event "Live Chess"]
[Site "Chess.com"]
[Date "2023.05.20"]
[Round "-"]
[White "kevinmilleruk"]
[Black "Horseymobile"]
[Result "1-0"]
[WhiteElo "1130"]
[BlackElo "1171"]
[TimeControl "300"]
[EndTime "12:45:36 PDT"]
[Termination "kevinmilleruk won by resignation"]

1. c4 {[%clk 0:04:57.9]} 1... Nf6 {[%clk 0:04:58.9]} 2. Nc3 {[%clk 0:04:56.3]}
2... g6 {[%clk 0:04:58.2]} 3. d4 {[%clk 0:04:55.6]} 3... Bg7 {[%clk 0:04:56.8]}
4. Bg5 {[%clk 0:04:55.1]} 4... O-O {[%clk 0:04:55.6]} 5. g3 {[%clk 0:04:54.5]}
5... d6 {[%clk 0:04:54.4]} 6. Bg2 {[%clk 0:04:53.8]} 6... Nc6 {[%clk 0:04:52.9]}
7. Nf3 {[%clk 0:04:52.9]} 7... Bd7 {[%clk 0:04:39.2]} 8. O-O {[%clk 0:04:42.1]}
8... Re8 {[%clk 0:04:21.1]} 9. e4 {[%clk 0:04:33.3]} 9... e5 {[%clk 0:04:17.1]}
10. d5 {[%clk 0:04:29.2]} 10... Ne7 {[%clk 0:04:14.7]} 11. b3 {[%clk 0:04:21.4]}
11... Bg4 {[%clk 0:04:02.6]} 12. h3 {[%clk 0:04:16]} 12... Bxf3 {[%clk
0:04:01.1]} 13. Qxf3 {[%clk 0:04:12.6]} 13... a5 {[%clk 0:03:44]} 14. Bxf6
{[%clk 0:04:10.8]} 1-0

[Event "Live Chess"]
[Site "Chess.com"]
[Date "2023.05.20"]
[Round "-"]
[White "Bob2pen"]
[Black "chessleanstrategist"]
[Result "1-0"]
[WhiteElo "1797"]
[BlackElo "400"]
[TimeControl "300"]
[EndTime "12:45:45 PDT"]
[Termination "Bob2pen won on time"]

1. e4 {[%clk 0:04:57.4]} 1... d6 {[%clk 0:04:58.7]} 2. d4 {[%clk 0:04:56.2]}
2... Nf6 {[%clk 0:04:56.5]} 3. Nc3 {[%clk 0:04:55.1]} 3... c5 {[%clk 0:04:36]}
4. dxc5 {[%clk 0:04:52.8]} 4... dxc5 {[%clk 0:04:04.8]} 5. Qxd8+ {[%clk
0:04:50.4]} 5... Kxd8 {[%clk 0:03:56.8]} 6. Bf4 {[%clk 0:04:47.2]} 6... Bd7
{[%clk 0:03:13.2]} 7. O-O-O {[%clk 0:04:45]} 7... Nc6 {[%clk 0:03:11.7]} 8. f3
{[%clk 0:04:37.5]} 8... g6 {[%clk 0:03:06.9]} 9. Nh3 {[%clk 0:04:35.4]} 9... h6
{[%clk 0:02:59.5]} 10. Bc4 {[%clk 0:04:30.4]} 10... g5 {[%clk 0:02:42.9]} 11.
Be3 {[%clk 0:04:22.7]} 11... e6 {[%clk 0:02:07.1]} 12. Nf2 {[%clk 0:04:19.9]}
12... Bg7 {[%clk 0:02:02.8]} 13. Bxc5 {[%clk 0:04:13.9]} 13... b6 {[%clk
0:01:23]} 14. Be3 {[%clk 0:04:08]} 14... Ne5 {[%clk 0:01:14.9]} 15. Bb5 {[%clk
0:03:58.4]} 15... a6 {[%clk 0:01:00.8]} 16. Bxd7 {[%clk 0:03:54.2]} 16... Nexd7
{[%clk 0:00:58.8]} 17. Bxb6+ {[%clk 0:03:51.3]} 17... Ke7 {[%clk 0:00:33.2]} 18.
Bd4 {[%clk 0:03:48.4]} 18... Rhg8 {[%clk 0:00:19]} 19. Nd3 {[%clk 0:03:45.4]}
19... Rad8 {[%clk 0:00:09]} 20. Nc5 {[%clk 0:03:38.8]} 20... Nxc5 {[%clk
0:00:05.2]} 21. Bxc5+ {[%clk 0:03:37.5]} 1-0

[Event "Live Chess"]
[Site "Chess.com"]
[Date "2023.05.20"]
[Round "-"]
[White "OceanFloater"]
[Black "Ferrarifan27"]
[Result "0-1"]
[WhiteElo "981"]
[BlackElo "2061"]
[TimeControl "300"]
[EndTime "12:46:00 PDT"]
[Termination "Ferrarifan27 won by checkmate"]

1. e4 {[%clk 0:04:51.4]} 1... e5 {[%clk 0:04:58.8]} 2. Nf3 {[%clk 0:04:51]} 2...
Nc6 {[%clk 0:04:58.1]} 3. Bc4 {[%clk 0:04:49.8]} 3... Bc5 {[%clk 0:04:56.8]} 4.
O-O {[%clk 0:04:46.8]} 4... Nf6 {[%clk 0:04:55]} 5. d3 {[%clk 0:04:46]} 5... d6
{[%clk 0:04:54]} 6. Bg5 {[%clk 0:04:44.5]} 6... Bg4 {[%clk 0:04:51.9]} 7. h3
{[%clk 0:04:43]} 7... Bh5 {[%clk 0:04:50.8]} 8. g4 {[%clk 0:04:41.4]} 8... Bg6
{[%clk 0:04:48.8]} 9. Nh4 {[%clk 0:04:40.1]} 9... Qe7 {[%clk 0:04:35.2]} 10.
Nxg6 {[%clk 0:04:38.5]} 10... hxg6 {[%clk 0:04:33.7]} 11. Kh2 {[%clk 0:04:34.6]}
11... O-O-O {[%clk 0:04:30]} 12. Nc3 {[%clk 0:04:31.9]} 12... Qd7 {[%clk
0:04:29.1]} 13. Nd5 {[%clk 0:04:30.4]} 13... Nxg4+ {[%clk 0:04:25.4]} 14. Kg3
{[%clk 0:04:27.4]} 14... Nxf2 {[%clk 0:04:18.7]} 15. Rxf2 {[%clk 0:04:20.9]}
15... Qxh3# {[%clk 0:04:15.6]} 0-1